bitfinex/quotes_BTCUSD_20250218
["timestamp","ask_amount","ask_price","bid_price","bid_amount"]
[1739878210247,0.156378,95922.0,95916.0,0.35258772]
[1739878210424,0.0001702,95925.0,95916.0,0.35458772]
[1739878210598,0.1565432,95925.0,95916.0,0.35458772]
[1739878210809,0.156373,95924.0,95917.0,0.001]
[1739878211015,0.0001702,95925.0,95917.0,0.001]
[1739878211179,0.156376,95923.0,95916.0,0.35258772]
[1739878211390,0.1565422,95925.0,95917.0,0.002]
[1739878211819,0.156376,95923.0,95917.0,0.002]
[1739878212016,0.0001702,95925.0,95917.0,0.30858772]
[1739878212266,0.156374,95924.0,95917.0,0.30658772]
[1739878212784,0.156373,95924.0,95917.0,0.30658772]
[1739878213286,0.0001702,95925.0,95917.0,0.30858772]
[1739878213484,0.156373,95924.0,95917.0,0.30858772]
[1739878213686,0.1565422,95925.0,95917.0,0.30858772]
[1739878214489,0.1565422,95925.0,95917.0,0.31058772]
[1739878214834,0.1565422,95925.0,95917.0,0.30892812]
[1739878215035,0.1565422,95925.0,95917.0,0.31092812]
[1739878215254,0.0001702,95925.0,95917.0,0.31092812]
[1739878215490,0.1565422,95925.0,95917.0,0.31092812]
[1739878215889,0.156373,95924.0,95917.0,0.30892812]
[1739878216091,0.0001702,95925.0,95917.0,0.30892812]
[1739878216315,0.0001702,95925.0,95917.0,0.30992812]
[1739878216680,0.1565422,95925.0,95917.0,0.30992812]
[1739878216862,0.156374,95924.0,95917.0,0.30792812]
[1739878217062,0.156374,95924.0,95917.0,0.30992812]
[1739878217462,0.156376,95923.0,95917.0,0.30992812]
[1739878217664,0.156375,95924.0,95917.0,0.30792812]
[1739878217878,0.156375,95924.0,95917.0,0.30992812]
[1739878218122,0.156376,95923.0,95917.0,0.30992812]
[1739878218322,0.2086672,95925.0,95917.0,0.30992812]
[1739878218525,0.156377,95922.0,95917.0,0.30792812]
[1739878218701,0.208502,95923.0,95917.0,0.30792812]
[1739878218921,0.156379,95921.0,95917.0,0.30792812]
[1739878219122,0.208502,95923.0,95917.0,0.30692812]
[1739878219379,0.208502,95923.0,95917.0,0.30892812]
[1739878219576,0.156378,95921.0,95917.0,0.30692812]
[1739878219862,0.156377,95922.0,95917.0,0.31092812]
[1739878220271,0.208501,95923.0,95917.0,0.31092812]
[1739878220588,0.156378,95922.0,95917.0,0.30792812]
[1739878220913,0.156378,95922.0,95917.0,0.30892812]
[1739878221294,0.156378,95921.0,95917.0,0.30892812]
[1739878221472,0.156378,95921.0,95917.0,0.30792812]
[1739878221829,0.156378,95921.0,95917.0,0.30992812]
[1739878222578,0.208499,95924.0,95917.0,0.30892812]
[1739878222736,0.483505,95923.0,95917.0,0.30992812]
[1739878222920,0.156376,95923.0,95917.0,0.30892812]
[1739878223133,0.156376,95923.0,95917.0,0.30692812]
[1739878223329,0.156377,95922.0,95917.0,0.30992812]
[1739878223534,0.156377,95922.0,95917.0,0.30892812]
[1739878223779,0.156377,95922.0,95917.0,0.30692812]
[1739878223981,0.156377,95922.0,95917.0,0.30792812]
[1739878224833,0.156375,95923.0,95917.0,0.30792812]
[1739878224982,0.156375,95923.0,95917.0,0.30992812]
[1739878225200,0.0001702,95925.0,95917.0,0.30992812]
[1739878225406,0.639074,95924.0,95917.0,0.30992812]
[1739878225605,0.4827,95923.0,95917.0,0.30992812]
[1739878225771,0.156377,95922.0,95917.0,0.30992812]
[1739878226204,0.156377,95922.0,95917.0,0.30792812]
[1739878226436,0.156377,95922.0,95917.0,0.30692812]
[1739878226612,0.156377,95922.0,95917.0,0.30792812]
[1739878226815,0.2086662,95925.0,95917.0,0.30892812]
[1739878226982,0.15638,95920.0,95917.0,0.30692812]
[1739878227381,0.156379,95921.0,95917.0,0.30792812]
[1739878227637,0.156379,95921.0,95917.0,0.30892812]
[1739878227913,0.156378,95922.0,95917.0,0.30892812]
[1739878228117,0.0001702,95925.0,95917.0,0.30692812]
[1739878228385,0.612832,95924.0,95917.0,0.30692812]
[1739878228595,0.156376,95923.0,95917.0,0.30692812]
[1739878228893,0.639377,95923.0,95917.0,0.30692812]
[1739878229123,0.156376,95923.0,95917.0,0.30692812]
[1739878229318,0.156376,95923.0,95917.0,0.30892812]
[1739878229598,0.156376,95923.0,95917.0,0.30992812]
[1739878229799,0.156376,95923.0,95917.0,0.30692812]
[1739878230182,0.156376,95923.0,95917.0,0.30892812]
[1739878230611,0.1565432,95925.0,95917.0,0.30892812]
[1739878230821,0.638642,95924.0,95917.0,0.30892812]
[1739878231019,0.0001702,95925.0,95917.0,0.30892812]
[1739878231167,0.230573,95924.0,95917.0,0.30892812]
[1739878231373,0.135503,95923.0,95917.0,0.30892812]
[1739878231576,0.156375,95923.0,95917.0,0.30892812]
[1739878231821,0.0001702,95925.0,95918.0,0.0829]
[1739878232809,0.0001702,95925.0,95919.0,0.15638]
[1739878233004,0.0001702,95925.0,95918.0,0.38948772]
[1739878233582,0.0001702,95925.0,95922.0,0.156375]
[1739878233808,0.0001702,95925.0,95922.0,0.156376]
[1739878234085,0.0001702,95925.0,95921.0,0.156377]
[1739878234285,0.0001702,95925.0,95918.0,0.39348772]
[1739878234520,0.0001702,95925.0,95920.0,0.156378]
[1739878234728,0.0001702,95925.0,95924.0,0.156373]
[1739878234934,0.0001702,95925.0,95924.0,0.236973]
[1739878235970,0.0001702,95925.0,95924.0,0.38837665]
[1739878236532,0.0001702,95925.0,95924.0,0.39437665]
[1739878236733,0.0001702,95925.0,95924.0,0.43802154]
[1739878236955,0.0001702,95925.0,95924.0,0.43602154]
[1739878237363,0.0001702,95925.0,95924.0,0.43902154]
[1739878237564,0.0001702,95925.0,95924.0,0.44502154]
[1739878238002,0.0001702,95925.0,95924.0,0.75160926]
[1739878239204,0.0001702,95925.0,95924.0,0.75921954]
[1739878239857,0.0001702,95925.0,95924.0,0.76704272]
[1739878247532,0.0001702,95925.0,95924.0,0.76104272]
[1739878247697,0.0001702,95925.0,95924.0,1.29984272]
[1739878247912,0.0001702,95925.0,95924.0,1.32054124]
[1739878248492,0.0001702,95925.0,95924.0,1.31354124]
[1739878248693,0.0001702,95925.0,95924.0,1.32754124]
[1739878249326,0.0001702,95925.0,95924.0,1.32054124]
[1739878249524,0.0001702,95925.0,95924.0,1.32754124]
[1739878259636,0.0001702,95925.0,95924.0,1.17116824]
[1739878260047,4.873e-05,95925.0,95924.0,1.32754124]
[1739878260607,4.873e-05,95925.0,95924.0,1.17116824]
[1739878260813,4.873e-05,95925.0,95924.0,1.04692335]
[1739878261062,4.873e-05,95925.0,95924.0,0.99802335]
[1739878261990,4.873e-05,95925.0,95924.0,0.99041307]
[1739878263053,4.873e-05,95925.0,95924.0,0.88008624]
[1739878264032,4.873e-05,95925.0,95924.0,0.85938772]
[1739878264447,0.0428158,95925.0,95924.0,0.85938772]
[1739878264622,4.873e-05,95925.0,95924.0,0.85938772]
[1739878264983,4.873e-05,95925.0,95924.0,0.85238772]
[1739878265184,4.873e-05,95925.0,95924.0,0.84838772]
[1739878265390,0.156365,95929.0,95924.0,0.84838772]
[1739878265612,0.156364,95930.0,95924.0,0.31258772]
[1739878265820,0.156364,95930.0,95924.0,0.30958772]
[1739878266023,0.156362,95931.0,95924.0,0.30958772]
[1739878266333,0.156362,95931.0,95924.0,0.31158772]
[1739878266557,0.20848,95933.0,95924.0,0.31158772]
[1739878266558,0.333664,95940.0,95924.0,0.30958772]
[1739878266765,3.840484,95939.0,95924.0,0.30758772]
[1739878266997,0.156372,95925.0,95924.0,0.30658772]
[1739878267152,0.1252,95940.0,95912.0,0.4173357]
[1739878267369,0.15637,95926.0,95913.0,0.10250365]
[1739878267590,0.156369,95927.0,95923.0,0.02089643]
[1739878268215,0.208481,95932.0,95913.0,0.11011051]
[1739878268424,0.15637,95927.0,95920.0,0.02104687]
[1739878268637,0.15637,95927.0,95921.0,0.10250365]
[1739878268836,0.15637,95926.0,95921.0,0.10250365]
[1739878269053,0.156367,95928.0,95921.0,0.10250365]
[1739878269265,0.156369,95927.0,95921.0,0.10250365]
[1739878270075,0.156369,95927.0,95921.0,0.10450365]
[1739878270410,0.156369,95927.0,95921.0,0.10250365]
[1739878270632,0.04174471,95931.0,95921.0,0.10450365]
[1739878270808,0.156368,95927.0,95921.0,0.10450365]
[1739878271151,0.208467,95938.0,95921.0,0.10650365]
[1739878271416,3.229522,95937.0,95921.0,0.10650365]
[1739878271610,2.114403,95936.0,95921.0,0.10650365]
[1739878271781,0.156355,95936.0,95922.0,0.01271117]
[1739878271995,0.04300597,95936.0,95922.0,0.01271117]
[1739878272205,0.156359,95933.0,95922.0,0.01271117]
[1739878272627,0.208474,95935.0,95922.0,0.09291117]
[1739878272869,0.15636,95933.0,95922.0,0.09291117]
[1739878273020,0.208476,95934.0,95922.0,0.09291117]
[1739878273221,0.15,95939.0,95922.0,0.0802]
[1739878273469,0.20847,95937.0,95922.0,0.0802]
[1739878273623,0.15636,95932.0,95922.0,0.0802]
[1739878273821,0.0420001,95937.0,95922.0,0.0802]
[1739878274087,0.156361,95932.0,95922.0,0.0802]
[1739878274293,0.15636,95932.0,95922.0,0.0802]
[1739878274517,0.208465,95939.0,95922.0,0.0802]
[1739878274718,0.156364,95930.0,95922.0,0.0802]
[1739878275108,0.156364,95930.0,95922.0,0.0805406]
[1739878275867,0.2086513,95932.0,95922.0,0.0825406]
[1739878276068,0.156366,95929.0,95922.0,0.0825406]
[1739878276283,0.208483,95931.0,95922.0,0.0825406]
[1739878276482,0.156365,95930.0,95922.0,0.0825406]
[1739878276688,0.208483,95931.0,95922.0,0.0825406]
[1739878277049,0.208483,95931.0,95922.0,0.0023406]
[1739878277378,0.156366,95929.0,95922.0,0.0013406]
[1739878277852,0.1565313,95932.0,95922.0,0.0013406]
[1739878278028,0.0001703,95932.0,95922.0,0.0003406]
[1739878278389,0.1565313,95932.0,95922.0,0.0013406]
[1739878278602,0.156362,95931.0,95922.0,0.0013406]
[1739878278813,0.0001703,95932.0,95922.0,0.0003406]
[1739878279019,0.156363,95931.0,95922.0,0.0013406]
[1739878279221,0.156364,95930.0,95922.0,0.0003406]
[1739878279548,0.22480957,95936.0,95922.0,0.0003406]
[1739878279875,0.567233,95935.0,95922.0,0.0003406]
[1739878280091,0.567233,95935.0,95922.0,0.00021913]
[1739878280251,0.156364,95930.0,95922.0,0.00021913]
[1739878280610,0.156364,95930.0,95922.0,0.00121913]
[1739878280949,0.156362,95932.0,95922.0,0.00121913]
[1739878281145,0.156362,95931.0,95922.0,0.00021913]
[1739878281464,0.156362,95931.0,95922.0,0.00121913]
[1739878281670,0.208474,95935.0,95922.0,0.00221913]
[1739878281872,0.156361,95932.0,95922.0,0.00021913]
[1739878282647,0.01633557,95936.0,95929.0,0.0771]
[1739878282797,0.04142714,95937.0,95930.0,0.10250365]
[1739878283001,0.049,95952.0,95930.0,0.10250365]
[1739878283002,0.156345,95942.0,95930.0,0.10250365]
[1739878283795,0.15678554,95942.0,95930.0,0.10250365]
[1739878284000,0.156346,95941.0,95930.0,0.10250365]
[1739878284196,0.156351,95938.0,95930.0,0.10250365]
[1739878284407,0.208464,95940.0,95930.0,0.10250365]
[1739878284605,0.156347,95941.0,95930.0,0.10250365]
[1739878284810,0.156348,95940.0,95930.0,0.10250365]
[1739878285010,0.001,95937.0,95930.0,0.10250365]
[1739878285478,0.156348,95940.0,95930.0,0.10450365]
[1739878285889,0.19806835,95941.0,95930.0,0.10550365]
[1739878286265,0.156348,95940.0,95930.0,0.10450365]
[1739878286468,0.156347,95940.0,95930.0,0.10650365]
[1739878286718,0.156347,95940.0,95930.0,0.10450365]
[1739878286894,0.04172235,95941.0,95930.0,0.10650365]
[1739878287138,0.156347,95940.0,95930.0,0.10650365]
[1739878287366,0.156347,95940.0,95930.0,0.10450365]
[1739878287739,0.20889954,95942.0,95930.0,0.10350365]
[1739878287942,0.156346,95941.0,95930.0,0.10350365]
[1739878288364,0.15695474,95942.0,95930.0,0.10350365]
[1739878288581,0.156346,95941.0,95930.0,0.10450365]
[1739878288788,0.156346,95941.0,95930.0,0.10250365]
[1739878289289,0.19955783,95941.0,95930.0,0.10250365]
[1739878290428,0.04321183,95941.0,95930.0,0.10250365]
[1739878290773,0.156346,95941.0,95930.0,0.10250365]
[1739878290974,0.156346,95941.0,95930.0,0.10350365]
[1739878291406,0.15619102,95941.0,95931.0,0.00761013]
[1739878291627,0.156348,95940.0,95931.0,0.11011378]
[1739878292229,0.208461,95941.0,95931.0,0.11011378]
[1739878292450,0.156348,95940.0,95931.0,0.11011378]
[1739878292804,0.00061074,95942.0,95931.0,0.10250365]
[1739878293009,0.156347,95940.0,95931.0,0.10250365]
[1739878293488,0.156347,95940.0,95931.0,0.10350365]
[1739878293924,0.156347,95940.0,95931.0,0.10250365]
[1739878294163,0.156347,95940.0,95931.0,0.10450365]
[1739878296245,0.15635,95939.0,95931.0,0.10450365]
[1739878296475,0.156351,95938.0,95931.0,0.10450365]
[1739878296907,0.156349,95939.0,95931.0,0.10450365]
[1739878297114,0.156349,95939.0,95931.0,0.10350365]
[1739878297697,0.156349,95939.0,95931.0,0.10450365]
[1739878298291,0.156349,95939.0,95931.0,0.10350365]
[1739878298501,0.156349,95939.0,95931.0,0.10450365]
[1739878299301,0.156347,95940.0,95931.0,0.10450365]
[1739878299785,0.0418035,95941.0,95931.0,0.10450365]
[1739878299991,0.156349,95939.0,95931.0,0.10450365]
[1739878300192,0.20907074,95942.0,95931.0,0.10350365]
[1739878300393,0.20907074,95942.0,95931.0,0.10250365]
[1739878300594,0.156348,95940.0,95931.0,0.10484405]
[1739878301017,0.156348,95940.0,95931.0,0.10284405]
[1739878301220,0.04282838,95941.0,95931.0,0.10284405]
[1739878301442,0.156349,95939.0,95931.0,0.10284405]
[1739878302200,0.208463,95940.0,95931.0,0.10284405]
[1739878302405,0.15635,95939.0,95931.0,0.10384405]
[1739878303373,0.15635,95939.0,95931.0,0.10484405]
[1739878303611,0.156348,95940.0,95931.0,0.10384405]
[1739878304023,0.156348,95940.0,95931.0,0.10484405]
[1739878304724,0.156348,95940.0,95931.0,0.10384405]
[1739878305086,0.156349,95939.0,95931.0,0.10484405]
[1739878305691,0.156349,95939.0,95931.0,0.10384405]
[1739878305997,0.156349,95939.0,95931.0,0.10484405]
[1739878306187,0.156348,95940.0,95931.0,0.10484405]
[1739878306544,0.19917438,95941.0,95931.0,0.10384405]
[1739878306734,0.04282838,95941.0,95931.0,0.10284405]
[1739878306952,0.19917538,95941.0,95931.0,0.10384405]
[1739878307093,0.19917538,95941.0,95931.0,0.10484405]
[1739878307324,0.19917538,95941.0,95932.0,0.00761141]
[1739878308122,0.156348,95940.0,95932.0,0.00761141]
[1739878308322,0.19917438,95941.0,95932.0,0.05931696]
[1739878308677,0.19917438,95941.0,95933.0,0.00761141]
[1739878308840,0.156348,95940.0,95933.0,0.00761141]
[1739878309996,0.156349,95939.0,95933.0,0.00861141]
[1739878310201,0.04282838,95941.0,95933.0,0.001]
[1739878310409,0.25129138,95941.0,95933.0,0.001]
[1739878310631,0.156347,95940.0,95933.0,0.001]
[1739878310829,0.04282838,95941.0,95933.0,0.002]
[1739878311032,0.156347,95940.0,95933.0,0.001]
[1739878311537,0.04282838,95941.0,95933.0,0.001]
[1739878311896,0.04282838,95941.0,95931.0,0.10284405]
[1739878312101,0.156347,95940.0,95931.0,0.10284405]
[1739878312305,0.156347,95940.0,95934.0,0.00745994]
[1739878313043,0.19917438,95941.0,95934.0,0.00745994]
[1739878313258,0.04282838,95941.0,95934.0,0.00745994]
[1739878313457,0.156347,95940.0,95934.0,0.00745994]
[1739878314218,0.04282838,95941.0,95931.0,0.10284405]
[1739878314416,0.04282838,95941.0,95934.0,0.001]
[1739878315172,0.19917538,95941.0,95934.0,0.002]
[1739878315533,0.156348,95940.0,95934.0,0.002]
[1739878315741,0.156348,95940.0,95934.0,0.001]
[1739878316082,0.156347,95940.0,95934.0,0.002]
[1739878316304,0.156347,95940.0,95934.0,0.001]
[1739878316486,0.208451,95946.0,95934.0,0.03373101]
[1739878316647,0.156346,95941.0,95934.0,0.001]
[1739878317045,0.156346,95941.0,95934.0,0.002]
[1739878317229,0.156346,95941.0,95934.0,0.001]
[1739878318080,0.156346,95941.0,95931.0,0.10284405]
[1739878318634,0.20870045,95941.0,95931.0,0.10284405]
[1739878319770,0.15007343,95946.0,95931.0,0.10384405]
[1739878319920,0.156346,95942.0,95931.0,0.10384405]
[1739878320121,0.19210307,95942.0,95931.0,0.10384405]
[1739878320282,0.03575707,95942.0,95931.0,0.10384405]
[1739878320486,0.208456,95944.0,95931.0,0.10384405]
[1739878320683,0.15007343,95946.0,95931.0,0.10384405]
[1739878320684,0.35852443,95946.0,95931.0,0.10384405]
[1739878320885,0.208454,95944.0,95931.0,0.10384405]
[1739878321093,0.156343,95943.0,95931.0,0.10384405]
[1739878321294,0.156343,95943.0,95931.0,0.10284405]
[1739878321747,0.03657203,95943.0,95931.0,0.25920505]
[1739878321950,0.03657203,95943.0,95932.0,0.15636]
[1739878322122,0.156341,95945.0,95932.0,0.15636]
[1739878322502,0.444627,95944.0,95931.0,0.10284405]
[1739878322677,0.156343,95943.0,95931.0,0.10284405]
[1739878323037,0.156341,95944.0,95931.0,0.25920605]
[1739878323446,0.156343,95943.0,95931.0,0.10284405]
[1739878323655,0.156343,95943.0,95931.0,0.25920505]
[1739878324433,0.209453,95945.0,95933.0,0.208478]
[1739878324434,0.001,95945.0,95933.0,0.208478]
[1739878324642,0.03561104,95946.0,95933.0,0.0468]
[1739878324850,0.03561104,95946.0,95934.0,0.13831606]
[1739878325079,0.03561104,95946.0,95935.0,0.0762]
[1739878325284,0.03561104,95946.0,95937.0,0.0762]
[1739878325487,0.03561104,95946.0,95942.0,0.0803]
[1739878325903,0.0001702,95944.0,95943.0,0.156342]
[1739878326505,0.0001702,95944.0,95943.0,0.16395855]
[1739878326679,0.0001702,95944.0,95943.0,0.00761655]
[1739878327264,0.0001702,95944.0,95943.0,0.01061655]
[1739878328928,0.0001702,95944.0,95943.0,0.01361655]
[1739878330450,0.0001702,95944.0,95943.0,0.006]
[1739878330662,0.0001702,95944.0,95943.0,0.06136186]
[1739878331295,0.0001702,95944.0,95943.0,0.006]
[1739878350931,0.0001702,95944.0,95943.0,0.162342]
[1739878351501,0.0001702,95944.0,95943.0,0.006]
[1739878351743,0.0001702,95944.0,95943.0,0.162342]
[1739878351970,0.0001702,95944.0,95943.0,0.006]
[1739878352155,0.0001702,95944.0,95943.0,0.162342]
[1739878352358,0.0001702,95944.0,95943.0,0.23858321]
[1739878353396,0.0001702,95944.0,95943.0,0.24619624]
[1739878354245,0.0001702,95944.0,95943.0,0.27751082]
[1739878356145,0.0001702,95944.0,95943.0,0.38001447]
[1739878356569,0.0001702,95944.0,95943.0,0.42921447]
[1739878357815,0.0001702,95944.0,95943.0,0.4370456]
[1739878358222,0.0001702,95944.0,95943.0,0.5155456]
[1739878359503,0.0001702,95944.0,95943.0,0.3592036]
[1739878359693,0.0001702,95944.0,95943.0,0.28296239]
[1739878360019,0.0001702,95944.0,95943.0,0.43930439]
[1739878360654,0.0001702,95944.0,95943.0,0.43147326]
[1739878361419,0.0001702,95944.0,95943.0,0.27513126]
[1739878361623,0.0001702,95944.0,95943.0,0.43147326]
[1739878362093,0.0001702,95944.0,95943.0,0.49550133]
[1739878362682,0.0001702,95944.0,95943.0,0.33915933]
[1739878363116,0.0001702,95944.0,95943.0,0.24381668]
[1739878363337,0.0001702,95944.0,95943.0,0.40015868]
[1739878363545,0.0001702,95944.0,95943.0,0.27245868]
[1739878365063,0.0001702,95944.0,95943.0,0.26484565]
[1739878365652,0.0001702,95944.0,95943.0,0.10850365]
[1739878366940,0.0001702,95944.0,95943.0,0.26484565]
[1739878367502,0.0001702,95944.0,95943.0,0.10850365]
[1739878368236,0.0001702,95944.0,95943.0,0.26484565]
[1739878368738,0.0001702,95944.0,95943.0,0.10850365]
[1739878371808,0.0001702,95944.0,95943.0,0.26484565]
[1739878371979,0.15528845,95961.0,95943.0,0.34098686]
[1739878372180,0.156325,95954.0,95944.0,0.10250365]
[1739878372428,0.156327,95953.0,95944.0,0.10250365]
[1739878372598,0.19782055,95954.0,95944.0,0.10250365]
[1739878372798,0.15,95958.0,95944.0,0.10250365]
[1739878373025,3.07773,95957.0,95944.0,0.10250365]
[1739878373227,0.208425,95958.0,95944.0,0.10250365]
[1739878373544,0.156328,95952.0,95944.0,0.10250365]
[1739878373948,0.001,95958.0,95944.0,0.10250365]
[1739878374160,0.208428,95956.0,95941.0,0.0003404]
[1739878374372,0.156344,95943.0,95941.0,0.0003404]
[1739878374572,0.208447,95948.0,95941.0,0.0003404]
[1739878374774,0.790366,95947.0,95941.0,0.0003404]
[1739878374988,0.0001702,95944.0,95941.0,0.0003404]
[1739878375838,0.156344,95943.0,95941.0,0.0003404]
[1739878376199,0.156344,95943.0,95941.0,0.0033404]
[1739878376598,0.156344,95942.0,95941.0,0.0003404]
[1739878376807,0.156344,95942.0,95941.0,0.0063404]
[1739878377168,0.156344,95942.0,95941.0,0.0033404]
[1739878377585,0.156344,95942.0,95941.0,0.0063404]
[1739878377889,0.156344,95942.0,95941.0,0.0033404]
[1739878378088,0.156344,95942.0,95941.0,0.0063404]
[1739878378280,0.156344,95942.0,95941.0,0.0033404]
[1739878378515,0.156344,95942.0,95941.0,0.0073404]
[1739878379009,0.2086262,95944.0,95941.0,0.0033404]
[1739878379182,0.156344,95942.0,95941.0,0.0053404]
[1739878379427,0.156344,95942.0,95941.0,0.0023404]
[1739878379615,0.156344,95942.0,95941.0,0.0043404]
[1739878380055,0.156344,95942.0,95941.0,0.0023404]
[1739878380258,0.156344,95942.0,95941.0,0.0033404]
[1739878380472,0.156344,95942.0,95941.0,0.0003404]
[1739878380868,0.156344,95942.0,95941.0,0.0023404]
[1739878381962,0.208449,95947.0,95941.0,0.0043404]
[1739878382197,0.156344,95942.0,95941.0,0.0043404]
[1739878382370,0.156344,95942.0,95941.0,0.0023404]
[1739878382545,0.156344,95942.0,95941.0,0.0043404]
[1739878384236,0.156343,95943.0,95941.0,0.0043404]
[1739878384826,0.156344,95942.0,95941.0,0.0043404]
[1739878385177,0.156344,95942.0,95941.0,0.0023404]
[1739878385608,0.156344,95942.0,95941.0,0.0043404]
[1739878386034,0.156344,95942.0,95941.0,0.0023404]
[1739878386239,0.156344,95942.0,95941.0,0.0043404]
[1739878386445,0.156344,95942.0,95941.0,0.0023404]
[1739878386780,0.156344,95942.0,95941.0,0.0043404]
[1739878386996,0.156344,95942.0,95941.0,0.0023404]
[1739878387775,0.156344,95942.0,95941.0,0.0043404]
[1739878389558,0.2086252,95944.0,95941.0,0.0043404]
[1739878389776,0.156344,95942.0,95941.0,0.0043404]
[1739878390122,0.156343,95943.0,95941.0,0.0043404]
[1739878390908,0.156344,95942.0,95941.0,0.0043404]
[1739878391212,0.156344,95942.0,95941.0,0.0003404]
[1739878391436,0.156344,95942.0,95941.0,0.0043404]
[1739878391842,0.156344,95942.0,95941.0,0.0023404]
[1739878392283,0.2086252,95944.0,95941.0,0.0043404]
[1739878392458,0.156344,95942.0,95941.0,0.0043404]
[1739878392691,1.214341,95942.0,95941.0,0.0043404]
[1739878392892,1.092252,95942.0,95941.0,0.0043404]
[1739878393737,1.092252,95942.0,95941.0,0.0063404]
[1739878394125,0.849649,95942.0,95941.0,0.0043404]
[1739878394431,0.700149,95942.0,95941.0,0.0063404]
[1739878394642,0.650466,95942.0,95941.0,0.0063404]
[1739878394851,0.156344,95942.0,95941.0,0.0063404]
[1739878395053,0.819344,95942.0,95941.0,0.0043404]
[1739878395195,0.819344,95942.0,95941.0,0.0063404]
[1739878395924,0.663,95942.0,95941.0,0.0063404]
[1739878396923,0.156344,95942.0,95941.0,0.0063404]
[1739878397258,0.831944,95942.0,95941.0,0.0063404]
[1739878397460,0.6756,95942.0,95941.0,0.0063404]
[1739878397663,0.0001702,95944.0,95941.0,0.0063404]
[1739878398547,0.0001702,95944.0,95941.0,0.0043404]
[1739878398926,0.0001702,95944.0,95941.0,0.0023404]
[1739878399082,0.0001702,95944.0,95941.0,0.0033404]
[1739878400425,0.0001702,95944.0,95943.0,0.156342]
[1739878401405,0.0001702,95944.0,95943.0,0.17590933]
[1739878401528,0.0001702,95944.0,95943.0,0.27841298]
[1739878401728,0.0001702,95944.0,95943.0,0.28041298]
[1739878402171,0.0001702,95944.0,95943.0,0.40971298]
[1739878402486,0.0001702,95944.0,95943.0,0.47264402]
[1739878402625,0.0001702,95944.0,95943.0,0.47364402]
[1739878402827,0.0001702,95944.0,95943.0,0.48126051]
[1739878403989,0.0001702,95944.0,95943.0,0.52037886]
[1739878404869,0.0001702,95944.0,95943.0,0.51837886]
[1739878405060,0.0001702,95944.0,95943.0,0.52337886]
[1739878405262,0.0001702,95944.0,95943.0,0.52837886]
[1739878407370,0.0001702,95944.0,95943.0,0.52055397]
[1739878407749,0.0001702,95944.0,95943.0,0.48926051]
[1739878410523,0.0001702,95944.0,95943.0,0.52834136]
[1739878414220,0.0001702,95944.0,95943.0,1.05932519]
[1739878415158,0.0001702,95944.0,95943.0,1.06213755]
[1739878415367,0.0001702,95944.0,95943.0,1.06713755]
[1739878415570,0.0001702,95944.0,95943.0,1.06113755]
[1739878415782,0.0001702,95944.0,95943.0,1.06213755]
[1739878416235,0.0001702,95944.0,95943.0,1.05613755]
[1739878416442,0.0001702,95944.0,95943.0,1.06313755]
[1739878416645,0.0001702,95944.0,95943.0,1.07013755]
[1739878416858,0.0004,95969.0,95957.0,0.208426]
[1739878417067,0.00048719,95969.0,95968.0,0.156302]
[1739878417517,0.00048719,95969.0,95958.0,0.20324625]
[1739878417923,0.00048719,95969.0,95962.0,0.208414]
[1739878418127,0.00048719,95969.0,95968.0,0.156302]
[1739878418282,0.04388468,95969.0,95968.0,0.1719322]
[1739878418629,0.04239158,95969.0,95968.0,0.1719322]
[1739878419398,0.04239158,95969.0,95968.0,0.0156302]
[1739878419583,0.04239158,95969.0,95968.0,0.0166302]
[1739878419796,0.04239158,95969.0,95968.0,0.0176302]
[1739878420314,0.04239158,95969.0,95968.0,0.1739322]
[1739878420509,0.04239158,95969.0,95968.0,0.158302]
[1739878423376,0.04256188,95969.0,95968.0,0.158302]
[1739878423533,0.04256188,95969.0,95968.0,0.002]
[1739878428276,0.04256188,95969.0,95968.0,0.158302]
[1739878428433,0.04256188,95969.0,95968.0,0.002]
[1739878434465,0.04256188,95969.0,95968.0,0.001]
[1739878434661,0.04256188,95969.0,95968.0,0.004]
[1739878435216,0.04256188,95969.0,95968.0,0.003]
[1739878435420,0.04256188,95969.0,95968.0,0.006]
[1739878437719,0.04256188,95969.0,95968.0,0.162302]
[1739878437953,0.04256188,95969.0,95968.0,0.19940744]
[1739878438312,0.04256188,95969.0,95968.0,0.04310544]
[1739878439425,0.04256188,95969.0,95968.0,0.006]
[1739878440101,0.04256188,95969.0,95968.0,0.02556383]
[1739878443343,0.19886188,95969.0,95968.0,0.02556383]
[1739878443575,0.04256188,95969.0,95968.0,0.02556383]
[1739878443782,0.19886188,95969.0,95968.0,0.02256383]
[1739878443981,0.19886188,95969.0,95968.0,0.004]
[1739878444161,0.19886188,95969.0,95968.0,0.001]
[1739878444801,0.84404888,95969.0,95968.0,0.001]
[1739878445006,0.84411488,95969.0,95968.0,0.001]
[1739878445286,0.156305,95966.0,95965.0,0.0003404]
[1739878445948,0.04256188,95969.0,95965.0,0.0003404]
[1739878446472,0.156303,95968.0,95965.0,0.0003404]
[1739878446688,0.04256188,95969.0,95965.0,0.0003404]
[1739878446894,0.156305,95966.0,95965.0,0.0003404]
[1739878447071,0.156305,95966.0,95965.0,0.0013404]
[1739878447522,0.156305,95966.0,95965.0,0.02091524]
[1739878447677,0.156304,95967.0,95965.0,0.02091524]
[1739878447882,0.208404,95968.0,95965.0,0.02091524]
[1739878448042,0.156305,95966.0,95965.0,0.02091524]
[1739878448248,0.156303,95967.0,95965.0,0.02091524]
[1739878448614,0.04256188,95969.0,95965.0,0.02191524]
[1739878448842,0.156305,95966.0,95965.0,0.02091524]
[1739878449063,0.156305,95966.0,95965.0,0.0013404]
[1739878449228,0.04256188,95969.0,95965.0,0.0013404]
[1739878449646,0.208402,95968.0,95965.0,0.0013404]
[1739878449863,0.156305,95966.0,95965.0,0.0003404]
[1739878450200,0.156305,95966.0,95965.0,0.0013404]
[1739878450640,0.156302,95968.0,95965.0,0.0013404]
[1739878450835,0.208402,95968.0,95965.0,0.0003404]
[1739878451078,0.156305,95966.0,95965.0,0.0003404]
[1739878451289,0.156305,95966.0,95965.0,0.0013404]
[1739878451678,0.156305,95966.0,95965.0,0.0219137]
[1739878452102,0.156305,95966.0,95965.0,0.0209137]
[1739878452312,0.156304,95967.0,95965.0,0.0209137]
[1739878452522,0.04256188,95969.0,95965.0,0.0209137]
[1739878452720,0.113253,95968.0,95965.0,0.0209137]
[1739878452941,0.04256188,95969.0,95965.0,0.0209137]
[1739878453347,0.04256188,95969.0,95966.0,0.0195733]
[1739878453945,0.19886288,95969.0,95966.0,0.0195733]